fUST/lending_fUST_20240917
["ID","MTS","AMOUNT","RATE_DAILY","PERIOD"]
[338347811,1726537890476,2705.63,0.00026,60]
[338347812,1726537893643,3676.27,0.00026,60]
[338347813,1726537893760,1334.46,0.00026,60]
[338347814,1726537895076,975.6,0.00026,60]
[338347815,1726537895522,410.2965739,0.00026,60]
[338347816,1726537896054,729.47,0.00026,60]
[338347817,1726537896302,1220.53,0.00026,60]
[338347818,1726537896628,644.81898305,0.00026,60]
[338347819,1726537897398,2041.55,0.00026,60]
[338347820,1726537898677,500.0,0.00026,60]
[338347821,1726537899154,500.0,0.00026,60]
[338347822,1726537899691,1632.85,0.00026,60]
[338347823,1726537900512,500.0,0.00026,60]
[338347824,1726537902181,979.75,0.00026,60]
[338347825,1726537902430,894.37,0.00026,60]
[338347826,1726537903702,2367.4,0.00026,60]
[338347827,1726537904019,500.0,0.00026,60]
[338347828,1726537906080,6187.56,0.00026,60]
[338347829,1726537906240,500.0,0.00026,60]
[338347830,1726537906472,500.0,0.00026,60]
[338347831,1726537908297,524.54,0.00026,60]
[338347832,1726537909947,521.96548811,0.00026,60]
[338347833,1726537911193,1888.0,0.00026,60]
[338347834,1726537911848,598.2,0.00026,60]
[338347835,1726537912443,4225.97,0.00026,60]
[338347836,1726537912967,500.0,0.00026,60]
[338347837,1726537913631,2263.92,0.00026,60]
[338347838,1726537913759,500.0,0.00026,60]
[338347839,1726537917501,600.34,0.00026,60]
[338347840,1726537920088,500.0,0.00026,60]
[338347841,1726537920154,500.0,0.00026,60]
[338347842,1726537920192,500.0,0.00026,60]
[338347843,1726537921179,629.02,0.00026,60]
[338347844,1726537921728,500.0,0.00026,60]
[338347845,1726537922814,511.28,0.00026,60]
[338347846,1726537923135,1308.43,0.00026,60]
[338347847,1726537926134,13476.49,0.00026,60]
[338347848,1726537927398,500.0,0.00026,60]
[338347849,1726537927629,500.0,0.00026,60]
[338347850,1726537927732,500.0,0.00026,60]
[338347851,1726537929123,534.14,0.00026,60]
[338347852,1726537931838,500.0,0.00026,60]
[338347853,1726537931894,500.0,0.00026,60]
[338347854,1726537932611,25854.01,0.00026,60]
[338347855,1726537932713,2431.88,0.00026,60]
[338347856,1726537932949,3056.07,0.00026,60]
[338347857,1726537933158,971.78,0.00026,60]
[338347858,1726537933596,500.0,0.00026,60]
[338347859,1726537934319,5159.45,0.00026,60]
[338347860,1726537934547,1456.5,0.00026,60]
[338347861,1726537936284,500.0,0.00026,60]
[338347862,1726537936799,500.0,0.00026,60]
[338347863,1726537937190,500.0,0.00026,60]
[338347864,1726537940160,1442.66,0.00026,60]
[338347865,1726537941306,500.0,0.00026,60]
[338347866,1726537943057,500.0,0.00026,60]
[338347867,1726537943433,2197.77,0.00026,60]
[338347868,1726537943614,4391.15,0.00026,60]
[338347869,1726537944698,861.1,0.00026,60]
[338347870,1726537944900,1517.31,0.00026,60]
[338347871,1726537944941,541.9,0.00026,60]
[338347872,1726537945762,1236.99,0.00026,60]
[338347873,1726537947690,1985.48,0.00026,60]
[338347874,1726537947885,500.0,0.00026,60]
[338347875,1726537951598,522.0303942,0.00026,60]
[338347876,1726537954783,500.0,0.00026,60]
[338347877,1726537955235,500.0,0.00026,60]
[338347878,1726537956011,500.0,0.00026,60]
[338347879,1726537956709,500.0,0.00026,60]
[338347880,1726537957127,500.0,0.00026,60]
[338347881,1726537957438,500.0,0.00026,60]
[338347882,1726537959695,500.0,0.00026,60]
[338347883,1726537959776,500.0,0.00026,60]
[338347884,1726537959991,863.6,0.00026,60]
[338347885,1726537960062,1198.12,0.00026,60]
[338347886,1726537961026,500.0,0.00026,60]
[338347887,1726537962307,500.0,0.00026,60]
[338347888,1726537962360,2547.5,0.00026,60]
[338347889,1726537962423,413.73930221,0.00026,60]
[338347890,1726537963399,2163.6,0.00026,60]
[338347891,1726537964553,211.92991609,0.00026,60]
[338347892,1726537965851,500.0,0.00026,60]
[338347893,1726537965888,1297.79,0.00026,60]
[338347894,1726537967132,1993.17,0.00026,60]
[338347895,1726537967197,500.0,0.00026,60]
[338347896,1726537967323,329.40997644,0.00026,60]
[338347897,1726537968154,500.0,0.00026,60]
[338347898,1726537968247,500.0,0.00026,60]
[338347899,1726537968314,492.84320963,0.00026,60]
[338347900,1726537968567,508.2800787,0.00026,60]
[338347901,1726537968987,1329.83,0.00026,60]
[338347902,1726537969135,1625.29,0.00026,60]
[338347903,1726537972040,2481.82,0.00026,60]
[338347904,1726537972114,2763.31,0.00026,60]
[338347905,1726537972896,500.0,0.00026,60]
[338347906,1726537973675,2240.02,0.00026,60]
[338347907,1726537973997,500.0,0.00026,60]
[338347908,1726537974036,1044.39,0.00026,60]
[338347909,1726537974949,500.0,0.00026,60]
[338347910,1726537976377,1621.23,0.00026,60]
[338347911,1726537978996,500.0,0.00026,60]
[338347912,1726537979130,2206.79,0.00026,60]
[338347913,1726537980375,500.0,0.00026,60]
[338347914,1726537980413,500.0,0.00026,60]
[338347915,1726537980684,500.0,0.00026,60]
[338347916,1726537982257,2647.7,0.00026,60]
[338347917,1726537982508,678.48,0.00026,60]
[338347918,1726537983273,500.0,0.00026,60]
[338347919,1726537983688,2662.66,0.00026,60]
[338347920,1726537984232,4034.57,0.00026,60]
[338347921,1726537985011,500.0,0.00026,60]
[338347922,1726537985259,500.70056448,0.00026,60]
[338347923,1726537986011,1017.29,0.00026,60]
[338347924,1726537986151,1808.6,0.00026,60]
[338347925,1726537987684,500.0,0.00026,60]
[338347926,1726537988301,500.0,0.00026,60]
[338347927,1726537990672,500.0,0.00026,60]
[338347928,1726537990736,500.0,0.00026,60]
[338347929,1726537991024,297.71152575,0.00026,60]
[338347930,1726537991582,1527.41,0.00026,60]
[338347931,1726537992059,1711.83,0.00026,60]
[338347932,1726537992822,500.0,0.00026,60]
[338347933,1726537994497,1032.31,0.00026,60]
[338347934,1726537994850,2676.4,0.00026,60]
[338347935,1726537994920,500.0,0.00026,60]
[338347936,1726537995176,2099.69994477,0.00025999,60]
[338347937,1726537995948,500.0,0.00026,60]
[338347938,1726537996203,767.78,0.00026,60]
[338347939,1726537997810,977.35,0.00026,60]
[338347940,1726537998723,775.8,0.00026,60]
[338347941,1726537999744,500.0,0.00026,60]
[338347942,1726538000793,500.0,0.00026,60]
[338347943,1726538002391,638.85,0.00026,60]
[338347944,1726538003146,3325.25,0.00026,60]
[338347945,1726538004284,1998.89,0.00026,60]
[338347946,1726538004325,500.0,0.00026,60]
[338347947,1726538005610,1742.02,0.00026,60]
[338347948,1726538005681,500.0,0.00026,60]
[338347949,1726538005730,851.96,0.00026,60]
[338347950,1726538006453,1366.58,0.00026,60]
[338347951,1726538007927,500.0,0.00026,60]
[338347952,1726538009580,500.0,0.00026,60]
[338347953,1726538009760,1017.38,0.00026,60]
[338347954,1726538009816,821.04,0.00026,60]
[338347955,1726538010018,972.0,0.00026,60]
[338347956,1726538010885,4127.8,0.00026,60]
[338347957,1726538011149,2394.44,0.00026,60]
[338347958,1726538011721,25463.25,0.00026,60]
[338347959,1726538012581,676.79,0.00026,60]
[338347960,1726538013628,2035.16,0.00026,60]
[338347961,1726538014759,168.27845027,0.00026,60]
[338347962,1726538015309,815.58,0.00026,60]
[338347963,1726538015403,180.70082576,0.00026,60]
[338347964,1726538016328,363.68484151,0.00026,60]
[338347965,1726538016828,15904.03,0.00026,60]
[338347966,1726538017342,500.0,0.00026,60]
[338347967,1726538017413,625.99,0.00026,60]
[338347968,1726538018612,4579.65,0.00026,60]
[338347969,1726538019492,500.0,0.00026,60]
[338347970,1726538019525,550.02,0.00026,60]
[338347971,1726538019814,500.0,0.00026,60]
[338347972,1726538020937,5738.91,0.00026,60]
[338347973,1726538020998,2283.42,0.00026,60]
[338347974,1726538023568,1757.38,0.00026,60]
[338347975,1726538023716,500.0,0.00026,60]
[338347976,1726538024035,22006.89,0.00026,60]
[338347977,1726538026333,500.0,0.00026,60]
[338347978,1726538026954,1002.02,0.00026,60]
[338347979,1726538027026,500.0,0.00026,60]
[338347980,1726538027887,8150.62,0.00026,60]
[338347981,1726538028966,500.0,0.00026,60]
[338347982,1726538029160,500.86038063,0.00026,60]
[338347983,1726538029605,500.0,0.00026,60]
[338347984,1726538029820,986.44,0.00026,60]
[338347985,1726538029905,500.0,0.00026,60]
[338347986,1726538030293,500.0,0.00026,60]
[338347987,1726538030799,500.0,0.00026,60]
[338347988,1726538031393,167.37057098,0.00026,60]
[338347989,1726538031547,500.0,0.00026,60]
[338347990,1726538032197,1000.0,0.00026,60]
[338347991,1726538032812,500.0,0.00026,60]
[338347992,1726538033812,500.0,0.00026,60]
[338347993,1726538034228,1148.14,0.00026,60]
[338347994,1726538034805,500.0,0.00026,60]
[338347995,1726538035198,751.56,0.00026,60]
[338347996,1726538035253,500.0,0.00026,60]
[338347997,1726538035450,637.30538366,0.00026,60]
[338347998,1726538036585,1324.27,0.00026,60]
[338347999,1726538037953,1794.58,0.00026,60]
[338348000,1726538038261,1000.0,0.00026,60]
[338348001,1726538039677,1789.54,0.00026,60]
[338348002,1726538041761,3614.04,0.00026,60]
[338348003,1726538042749,678.79,0.00026,60]
[338348004,1726538042815,1000.0,0.00026,60]
[338348005,1726538043239,994.87,0.00026,60]
[338348006,1726538043407,500.0,0.00026,60]
[338348007,1726538043991,1428.81,0.00026,60]
[338348008,1726538044374,463.45250653,0.00026,60]
[338348009,1726538044459,500.0,0.00026,60]
[338348010,1726538045353,500.0,0.00026,60]
[338348011,1726538047675,500.0,0.00026,60]
[338348012,1726538048891,519.81,0.00026,60]
[338348013,1726538049221,999.13,0.00026,60]
[338348014,1726538049870,1451.97,0.00026,60]
[338348015,1726538051209,500.0,0.00026,60]
[338348016,1726538052007,1465.33,0.00026,60]
[338348017,1726538052247,500.0,0.00026,60]
[338348018,1726538052455,783.3,0.00026,60]
[338348019,1726538053764,747.97,0.00026,60]
[338348020,1726538054426,500.0,0.00026,60]
[338348021,1726538056017,1010.71,0.00026,60]
[338348022,1726538058840,281.31714527,0.00026,60]
[338348023,1726538058908,500.0,0.00026,60]
[338348024,1726538058996,500.0,0.00026,60]
[338348025,1726538060203,601.62,0.00026,60]
[338348026,1726538060543,2622.26,0.00026,60]
[338348027,1726538062211,993.63,0.00026,60]
[338348028,1726538062256,500.0,0.00026,60]
[338348029,1726538063120,8250.76,0.00026,60]
[338348030,1726538064266,500.0,0.00026,60]
[338348031,1726538064305,2260.35,0.00026,60]
[338348032,1726538064465,500.0,0.00026,60]
[338348033,1726538064609,2121.39686,0.00025999,60]
[338348034,1726538064652,579.61,0.00026,60]
[338348035,1726538064865,520.27,0.00026,60]
[338348036,1726538068207,4954.91,0.00026,60]
[338348037,1726538069207,500.0,0.00026,60]
[338348038,1726538070147,1000.0,0.00026,60]
[338348039,1726538070423,500.0,0.00026,60]
[338348040,1726538074717,500.0,0.00026,60]
[338348041,1726538075216,507.80166927,0.00026,60]
[338348042,1726538076343,643.0,0.00026,60]
[338348043,1726538077344,1170.53,0.00026,60]
[338348044,1726538077378,500.0,0.00026,60]
[338348045,1726538077639,500.0,0.00026,60]
[338348046,1726538077736,19303.27,0.00026,60]
[338348047,1726538078771,3119.92,0.00026,60]
[338348048,1726538079808,500.0,0.00026,60]
[338348049,1726538079852,955.68,0.00026,60]
[338348050,1726538081317,323.15941287,0.00026,60]
[338348051,1726538081677,500.0,0.00026,60]
[338348052,1726538082143,500.0,0.00026,60]
[338348053,1726538084471,501.00014693,0.00026,60]
[338348054,1726538085210,597.09,0.00026,60]
[338348055,1726538086249,1000.0,0.00026,60]
[338348056,1726538086718,677.87,0.00026,60]
[338348057,1726538087100,2442.04,0.00026,60]
[338348058,1726538087571,528.77936322,0.00026,60]
[338348059,1726538088155,507.16645198,0.00026,60]
[338348060,1726538088227,543.67,0.00026,60]
[338348061,1726538091445,500.0,0.00026,60]
[338348064,1726538091819,593.15340533,0.00026,60]
[338348066,1726538093822,500.0,0.00026,60]
[338348067,1726538094400,500.0,0.00026,60]
[338348068,1726538094732,574.5,0.00026,60]
[338348069,1726538094786,1101.6,0.00026,60]
[338348070,1726538095329,500.0,0.00026,60]
[338348071,1726538095493,500.0,0.00026,60]
[338348072,1726538096568,590.44,0.00026,60]
[338348073,1726538096847,500.0,0.00026,60]
[338348074,1726538097551,500.0,0.00026,60]
[338348075,1726538097804,500.0,0.00026,60]
[338348076,1726538097932,500.0,0.00026,60]
[338348077,1726538100666,500.73367531,0.00026,60]
[338348078,1726538101290,500.0,0.00026,60]
[338348079,1726538103086,500.0,0.00026,60]
[338348080,1726538104178,1786.11,0.00026,60]
[338348081,1726538104512,9035.69,0.00026,60]
[338348082,1726538105345,500.0,0.00026,60]
[338348083,1726538105843,500.0,0.00026,60]
[338348084,1726538106983,500.0,0.00026,60]
[338348085,1726538108039,500.7,0.00026,60]
[338348086,1726538108107,500.0,0.00026,60]
[338348087,1726538108719,500.0,0.00026,60]
[338348088,1726538110191,534.08,0.00026,60]
[338348089,1726538110235,500.0,0.00026,60]
[338348090,1726538110272,500.0,0.00026,60]
[338348091,1726538111685,500.0,0.00026,60]
[338348092,1726538113726,500.0,0.00026,60]
[338348093,1726538113951,500.0,0.00026,60]
[338348094,1726538115045,830.39,0.00026,60]
[338348095,1726538115180,252.9593993,0.00026,60]
[338348096,1726538116293,500.0,0.00026,60]
[338348097,1726538116672,500.0,0.00026,60]
[338348098,1726538118314,500.0,0.00026,60]
[338348099,1726538118360,758.26,0.00026,60]
[338348100,1726538118698,673.35,0.00026,60]
[338348101,1726538119269,500.0,0.00026,60]
[338348102,1726538119437,612.97,0.00026,60]
[338348103,1726538121559,1278.85,0.00026,60]
[338348104,1726538122009,1038.33,0.00026,60]
[338348105,1726538124420,1115.18,0.00026,60]
[338348106,1726538124838,500.0,0.00026,60]
[338348107,1726538126645,892.24,0.00026,60]
[338348108,1726538126809,500.0,0.00026,60]
[338348109,1726538127248,752.2,0.00026,60]
[338348110,1726538128065,500.0,0.00026,60]
[338348111,1726538128117,500.0,0.00026,60]
[338348112,1726538130189,506.03137637,0.00026,60]
[338348113,1726538130352,500.0,0.00026,60]
[338348114,1726538131265,938.92,0.00026,60]
[338348115,1726538133561,5929.75,0.00026,60]
[338348116,1726538134195,500.0,0.00026,60]
[338348117,1726538134975,500.0,0.00026,60]
[338348118,1726538135102,506.33,0.00026,60]
[338348119,1726538135432,991.69,0.00026,60]
[338348120,1726538135901,1750.8,0.00026,60]
[338348121,1726538135953,894.04,0.00026,60]
[338348122,1726538136086,500.0,0.00026,60]
[338348123,1726538136125,500.0,0.00026,60]
[338348124,1726538137506,250.0,0.00026,60]
[338348125,1726538138614,500.0,0.00026,60]
[338348126,1726538139319,5728.7,0.00026,60]
[338348127,1726538141514,560.35848211,0.00026,60]
[338348128,1726538142326,500.0,0.00026,60]
[338348129,1726538144051,500.0,0.00026,60]
[338348130,1726538144084,907.57,0.00026,60]
[338348131,1726538144528,962.23,0.00026,60]
[338348132,1726538145305,1208.95,0.00026,60]
[338348133,1726538147704,671.72,0.00026,60]
[338348134,1726538148411,602.81,0.00026,60]
[338348135,1726538148556,500.0,0.00026,60]
[338348136,1726538148911,500.0,0.00026,60]
[338348137,1726538149787,500.0,0.00026,60]
[338348138,1726538150446,500.0,0.00026,60]
[338348139,1726538153735,500.0,0.00026,60]
[338348140,1726538154207,891.62,0.00026,60]
[338348141,1726538154428,590.67,0.00026,60]
[338348142,1726538155509,925.23,0.00026,60]
[338348143,1726538156589,1367.91,0.00026,60]
[338348144,1726538156624,1305.93,0.00026,60]
[338348145,1726538157384,500.0,0.00026,60]
[338348146,1726538157943,500.0,0.00026,60]
[338348147,1726538158578,500.0,0.00026,60]
[338348148,1726538161241,500.0,0.00026,60]
[338348149,1726538161334,4944.47,0.00026,60]
[338348150,1726538161991,1635.65,0.00026,60]
[338348151,1726538162839,-500.0,0.00017512,2]
[338348152,1726538163563,697.13,0.00026,60]
[338348153,1726538164749,2712.1,0.00026,60]
[338348154,1726538164935,831.15,0.00026,60]
[338348155,1726538165257,500.0,0.00026,60]
[338348156,1726538166338,500.0,0.00026,60]
[338348157,1726538166422,3523.1,0.00026,60]
[338348158,1726538166461,1000.0,0.00026,60]
[338348159,1726538167202,500.0,0.00026,60]
[338348160,1726538168298,1337.46,0.00026,60]
[338348161,1726538168673,500.0,0.00026,60]
[338348162,1726538168727,500.0,0.00026,60]
[338348163,1726538170189,1000.0,0.00026,60]
[338348164,1726538170583,24776.76,0.00026,60]
[338348165,1726538172103,519.32,0.00026,60]
[338348166,1726538174151,502.1359833,0.00026,60]
[338348167,1726538174348,590.65,0.00026,60]
[338348168,1726538174503,500.0,0.00026,60]
[338348169,1726538174817,756.84,0.00026,60]
[338348170,1726538175155,857.1,0.00026,60]
[338348171,1726538175603,500.0,0.00026,60]
[338348172,1726538175644,2000.73,0.00026,60]
[338348173,1726538175702,500.0,0.00026,60]
[338348174,1726538177403,1358.77,0.00026,60]
[338348175,1726538178389,500.0,0.00026,60]
[338348176,1726538180257,154.26538698,0.00026,60]
[338348177,1726538181051,3921.3,0.00026,60]
[338348178,1726538181631,4208.18,0.00026,60]
[338348179,1726538181723,500.0,0.00026,60]
[338348180,1726538182915,500.0,0.00026,60]
[338348181,1726538183905,500.0,0.00026,60]
[338348182,1726538184679,1369.37,0.00026,60]
[338348183,1726538184894,1010.03886961,0.00026,60]
[338348184,1726538184980,519.35,0.00026,60]
[338348185,1726538185023,1809.33,0.00026,60]
[338348186,1726538185313,500.0,0.00026,60]
[338348187,1726538186401,500.0,0.00026,60]
[338348188,1726538188020,500.0,0.00026,60]
[338348189,1726538188581,501.24822916,0.00026,60]
[338348190,1726538189214,1910.12,0.00026,60]
[338348191,1726538190042,2268.76,0.00026,60]
[338348192,1726538190471,165.68800194,0.00026,60]
[338348193,1726538190825,1000.0,0.00026,60]
[338348194,1726538190942,500.0,0.00026,60]
[338348195,1726538191194,500.0,0.00026,60]
[338348196,1726538191847,500.0,0.00026,60]
[338348197,1726538192875,2441.35,0.00026,60]
[338348198,1726538195415,1000.0,0.00026,60]
[338348199,1726538197891,625.55,0.00026,60]
[338348200,1726538198212,862.92,0.00026,60]
[338348201,1726538198655,4049.89,0.00026,60]
[338348202,1726538199092,500.0,0.00026,60]
[338348203,1726538199635,500.0,0.00026,60]
[338348204,1726538199950,1423.39,0.00026,60]
[338348205,1726538200001,500.0,0.00026,60]
[338348206,1726538201057,2146.69,0.00026,60]
[338348207,1726538201187,500.0,0.00026,60]
[338348208,1726538202275,500.0,0.00026,60]
[338348209,1726538204069,500.0,0.00026,60]
[338348210,1726538204128,1467.28,0.00026,60]
[338348211,1726538205289,2073.45,0.00026,60]
[338348212,1726538205811,500.0,0.00026,60]
[338348213,1726538210071,500.0,0.00026,60]
[338348214,1726538210487,1640.5,0.00026,60]
[338348215,1726538211224,500.0,0.00026,60]
[338348216,1726538211424,500.0,0.00026,60]
[338348217,1726538213382,500.0,0.00026,60]
[338348218,1726538214213,2039.65,0.00026,60]
[338348219,1726538214427,500.0,0.00026,60]
[338348220,1726538216062,500.0,0.00026,60]
[338348221,1726538216408,500.0,0.00026,60]
[338348222,1726538216729,500.0,0.00026,60]
[338348223,1726538216947,500.0,0.00026,60]
[338348224,1726538217245,500.0,0.00026,60]
[338348225,1726538218004,500.0,0.00026,60]
[338348226,1726538218743,5069.52,0.00026,60]
[338348227,1726538218902,500.0,0.00026,60]
[338348228,1726538220988,500.0,0.00026,60]
[338348229,1726538221577,1262.34,0.00026,60]
[338348230,1726538222013,2610.32,0.00026,60]
[338348231,1726538222941,2114.84,0.00026,60]
[338348232,1726538222985,877.08,0.00026,60]
[338348233,1726538223948,735.79,0.00026,60]
[338348234,1726538224071,500.0,0.00026,60]
[338348235,1726538225587,500.0,0.00026,60]
[338348236,1726538225710,1382.55,0.00026,60]
[338348237,1726538225786,1024.93,0.00026,60]
[338348238,1726538226676,500.0,0.00026,60]
[338348239,1726538227865,500.0,0.00026,60]
[338348240,1726538227916,860.2,0.00026,60]
[338348241,1726538229235,500.0,0.00026,60]
[338348242,1726538230375,500.0,0.00026,60]
[338348243,1726538230465,500.0,0.00026,60]
[338348244,1726538232342,500.0,0.00026,60]
[338348245,1726538232777,500.0,0.00026,60]
[338348246,1726538233265,502.58213495,0.00026,60]
[338348247,1726538233795,500.0,0.00026,60]
[338348248,1726538234242,500.0,0.00026,60]
[338348249,1726538234297,500.0,0.00026,60]
[338348250,1726538234404,2225.01,0.00026,60]
[338348251,1726538235241,500.0,0.00026,60]
[338348252,1726538236735,500.0,0.00026,60]
[338348253,1726538238315,1684.16,0.00026,60]
[338348254,1726538239517,612.23,0.00026,60]
[338348255,1726538239591,3955.81,0.00026,60]
[338348256,1726538240292,565.9298698,0.00026,60]
[338348257,1726538243928,1148.19,0.00026,60]
[338348258,1726538243963,500.0,0.00026,60]
[338348259,1726538244636,500.0,0.00026,60]
[338348260,1726538244888,2431.7,0.00026,60]
[338348261,1726538246027,639.64,0.00026,60]
[338348262,1726538246752,500.0,0.00026,60]
[338348263,1726538248258,500.0,0.00026,60]
[338348264,1726538248513,24402.28,0.00026,60]
[338348265,1726538249120,500.0,0.00026,60]
[338348267,1726538249950,500.0,0.00026,60]
[338348268,1726538250310,5499.79,0.00026,60]
[338348269,1726538252505,501.27389156,0.00026,60]
[338348270,1726538253097,500.0,0.00026,60]
[338348272,1726538254394,500.0,0.00026,60]
[338348273,1726538256566,500.0,0.00026,60]
[338348274,1726538256601,2572.59,0.00026,60]
[338348275,1726538256658,500.0,0.00026,60]
[338348276,1726538257339,500.0,0.00026,60]
[338348277,1726538259270,945.34,0.00026,60]
[338348278,1726538259479,500.0,0.00026,60]
[338348279,1726538261225,2188.28,0.00026,60]
[338348280,1726538261576,500.0,0.00026,60]
[338348281,1726538262431,500.0,0.00026,60]
[338348282,1726538265259,500.0,0.00026,60]
[338348283,1726538265689,500.0,0.00026,60]
[338348284,1726538265745,15241.36,0.00026,60]
[338348285,1726538265999,500.0,0.00026,60]
[338348286,1726538266041,832.22,0.00026,60]
[338348287,1726538266388,1461.29,0.00026,60]
[338348288,1726538268211,829.26,0.00026,60]
[338348289,1726538268691,1369.28,0.00026,60]
[338348290,1726538269966,1672.34,0.00026,60]
[338348291,1726538270034,500.0,0.00026,60]
[338348292,1726538271081,500.0,0.00026,60]
[338348293,1726538272774,500.0,0.00026,60]
[338348294,1726538272858,500.0,0.00026,60]
[338348295,1726538273077,1952.24,0.00026,60]
[338348296,1726538273942,500.0,0.00026,60]
[338348297,1726538275250,3186.69,0.00026,60]
[338348298,1726538275918,500.0,0.00026,60]
[338348299,1726538276300,500.0,0.00026,60]
[338348300,1726538276808,7811.01,0.00026,60]
[338348301,1726538276974,500.0,0.00026,60]
[338348302,1726538277261,750.67,0.00026,60]
[338348303,1726538277460,500.0,0.00026,60]
[338348304,1726538279628,500.0,0.00026,60]
[338348305,1726538279857,500.0,0.00026,60]
[338348306,1726538281862,3463.45,0.00026,60]
[338348307,1726538283455,500.0,0.00026,60]
[338348308,1726538283523,799.61,0.00026,60]
[338348309,1726538283744,5134.68,0.00026,60]
[338348310,1726538283887,500.0,0.00026,60]
[338348311,1726538286164,1950.36,0.00026,60]
[338348312,1726538286668,500.0,0.00026,60]
[338348313,1726538288736,7906.98,0.00026,60]
[338348314,1726538289210,500.0,0.00026,60]
[338348315,1726538289685,500.0,0.00026,60]